bitfinex-derivatives/quotes_ETHF0:USTF0_20250214
["timestamp","ask_amount","ask_price","bid_price","bid_amount"]
[1739504871319,0.73773,2710.6,2710.5,0.00553383]
[1739504871524,0.73772,2710.7,2710.5,0.00553383]
[1739504871722,0.73769,2710.8,2710.5,0.00553383]
[1739504871926,1.66,2710.9,2710.6,3.94553]
[1739504872320,1.661,2711.1,2710.6,3.2078]
[1739504872618,0.73766,2710.9,2710.6,3.2078]
[1739504873028,0.7377,2710.8,2710.6,3.2078]
[1739504873221,0.73767,2710.9,2710.6,3.2078]
[1739504873523,4.8688,2711.1,2710.6,3.2078]
[1739504873718,0.73761,2711.1,2710.9,3.2078]
[1739504873923,0.73762,2711.1,2710.9,3.2078]
[1739504874128,0.73758,2711.2,2710.9,3.2078]
[1739504874317,1.1628,2711.6,2710.9,3.2078]
[1739504874625,0.73761,2711.1,2710.9,3.2078]
[1739504874824,0.73762,2711.0,2710.9,3.2078]
[1739504876126,0.73758,2711.2,2710.9,3.2078]
[1739504876424,3.2078,2711.4,2710.9,3.2078]
[1739504876728,0.73761,2711.1,2710.9,3.2078]
[1739504877026,0.73758,2711.2,2710.9,3.2078]
[1739504877525,0.73758,2711.2,2711.0,40.8]
[1739504877722,0.73753,2711.4,2711.0,41.53761]
[1739504877921,3.2078,2712.3,2711.3,3.62473242]
[1739504878220,3.2078,2712.3,2711.7,3.2078]
[1739504878425,0.73741,2711.8,2711.7,3.2078]
[1739504879020,0.73751,2711.4,2711.3,3.2078]
[1739504879229,1.679,2711.6,2711.3,3.2078]
[1739504879426,0.73751,2711.4,2711.3,3.2078]
[1739504879726,0.5577,2711.7,2711.3,3.2078]
[1739504879927,1.682,2711.6,2711.3,3.2078]
[1739504880229,0.73749,2711.5,2711.3,3.2078]
[1739504880528,1.682,2711.6,2711.3,3.2078]
[1739504881026,1.682,2711.6,2711.3,3.94533]
[1739504881227,1.681,2711.8,2711.3,3.2078]
[1739504881429,0.73751,2711.4,2711.3,3.2078]
[1739504882128,0.7376,2711.1,2711.0,3.2078]
[1739504882529,1.683,2711.3,2711.0,3.2078]
[1739504882731,0.7376,2711.1,2711.0,3.2078]
[1739504883331,0.73768,2710.8,2710.7,3.2078]
[1739504883726,0.73773,2710.6,2710.5,0.00553383]
[1739504884728,0.73773,2710.6,2710.1,0.59]
[1739504884729,0.73784,2710.2,2710.1,3.2078]
[1739504884932,1.685,2710.3,2710.0,3.2078]
[1739504885132,0.5521,2710.5,2709.4,0.01503]
[1739504885133,1.686,2710.2,2709.7,3.2078]
[1739504885433,0.5521,2710.5,2710.0,3.2078]
[1739504885434,1.686,2710.1,2710.0,3.2078]
[1739504886228,1.686,2710.1,2709.8,0.00553383]
[1739504886430,0.73792,2709.9,2709.8,0.00553383]
[1739504887333,2.42388,2710.1,2709.8,0.00553383]
[1739504887532,0.73792,2710.0,2709.8,0.00553383]
[1739504887931,0.73792,2709.9,2709.8,0.00553383]
[1739504888825,4.8938,2710.1,2709.8,0.00553383]
[1739504889032,0.7379,2710.0,2709.8,0.00553383]
[1739504889337,0.73792,2709.9,2709.8,0.00553383]
[1739504890737,3.2078,2710.1,2709.8,0.00553383]
[1739504890937,1.69,2709.9,2709.8,40.80553383]
[1739504891236,0.00553383,2710.3,2709.8,40.80553383]
[1739504891534,1.74877592,2710.2,2710.0,3.2078]
[1739504891738,1.691,2710.2,2710.0,3.2078]
[1739504892743,0.00553383,2710.3,2710.0,3.2078]
[1739504893043,1.69653383,2710.3,2710.0,3.2078]
[1739504893337,1.69653383,2710.3,2710.0,3.20481821]
[1739504893931,1.69653383,2710.3,2710.1,0.73786]
[1739504894239,0.00553383,2710.3,2710.1,4.36258242]
[1739504894440,0.00553383,2710.3,2710.0,3.75981821]
[1739504894741,0.00553383,2710.3,2710.0,3.94270821]
[1739504895042,0.00553383,2710.3,2710.0,3.20481821]
[1739504895542,0.00553383,2710.3,2710.1,0.73786]
[1739504895737,0.00553383,2710.3,2710.0,3.20481821]
[1739504896144,0.73787,2710.1,2710.0,3.20481821]
[1739504896643,0.73784,2710.2,2710.0,3.20481821]
[1739504897045,0.00553383,2710.3,2710.0,3.94269821]
[1739504897347,0.00553383,2710.3,2710.2,0.73784]
[1739504897539,0.00553383,2710.3,2710.0,3.20481821]
[1739504898048,0.00553383,2710.3,2710.2,0.73784]
[1739504898655,0.00553383,2710.3,2710.2,1.88474]
[1739504899150,3.2078,2711.2,2710.2,7.1469]
[1739504899447,1.689,2711.1,2710.7,3.2078]
[1739504899652,0.73766,2710.9,2710.7,3.2078]
[1739504900252,0.73764,2711.0,2710.7,3.2078]
[1739504900444,0.73764,2711.0,2710.7,3.94549]
[1739504900641,0.73761,2711.1,2710.7,3.2078]
[1739504900850,0.73761,2711.1,2710.8,0.73768]
[1739504901147,2.42455,2711.3,2711.0,3.94541]
[1739504901347,2.4255,2711.5,2711.2,0.73757]
[1739504901546,1.688,2711.5,2711.3,3.2078]
[1739504901850,0.73745,2711.7,2711.3,3.94533]
[1739504902247,1.689,2711.8,2711.4,1.31779]
[1739504902455,0.5748,2712.1,2711.4,1.31779]
[1739504902650,1.74773417,2712.0,2711.4,1.31779]
[1739504902848,0.73742,2711.8,2711.4,1.31779]
[1739504903047,1.69,2712.0,2711.5,0.73747]
[1739504903048,0.73737,2712.0,2711.5,0.73747]
[1739504903352,0.73736,2712.0,2711.6,3.2078]
[1739504903555,1.31214,2712.1,2711.7,0.73743]
[1739504903753,2.2628,2712.1,2711.6,3.2078]
[1739504903943,2.2628,2712.1,2711.7,0.73743]
[1739504904147,2.2628,2712.1,2711.6,3.2078]
[1739504904346,0.73735,2712.0,2711.6,3.94526]
[1739504904753,0.73735,2712.0,2711.6,3.2078]
[1739504905255,0.5748,2712.1,2711.9,3.2078]
[1739504905443,1.31214,2712.1,2711.9,3.2078]
[1739504905755,0.73731,2712.2,2711.9,3.2078]
[1739504906161,1.686,2712.3,2711.9,3.2078]
[1739504906353,0.0577245,2712.2,2711.9,3.2078]
[1739504906658,3.2078,2713.0,2712.0,4.21083242]
[1739504906856,3.2078,2713.3,2712.7,3.2078]
[1739504907151,1.74970302,2713.2,2712.7,3.2078]
[1739504907454,0.05770375,2713.1,2712.8,40.8]
[1739504907650,0.73711,2712.9,2712.8,40.8]
[1739504907856,1.692,2713.2,2712.8,40.8]
[1739504908154,3.2078,2713.3,2712.8,40.8]
[1739504908155,0.73711,2712.9,2712.8,40.8]
[1739504908460,0.73713,2712.8,2712.7,0.00553383]
[1739504908756,0.79484288,2712.8,2712.7,0.00403183]
[1739504909157,0.79484958,2712.8,2712.7,0.00403183]
[1739504909460,2.43613,2712.8,2712.7,0.00403183]
[1739504909854,2.49384346,2712.8,2712.7,0.00403183]
[1739504910354,1.75871346,2712.8,2712.1,3.2078]
[1739504910659,0.05771346,2712.7,2712.1,3.2078]
[1739504910957,1.701,2712.8,2712.4,3.2078]
[1739504911153,1.701,2712.8,2712.7,3.2078]
[1739504911351,0.001502,2713.0,2712.7,3.2078]
[1739504911752,0.001502,2713.0,2712.8,0.5813]
[1739504912963,0.001502,2713.0,2712.8,1.31842]
[1739504913153,3.2078,2713.7,2712.8,4.20603242]
[1739504913353,0.73692,2713.6,2713.2,3.2078]
[1739504913558,0.73699,2713.4,2713.2,3.2078]
[1739504913752,0.73698,2713.4,2713.2,3.2078]
[1739504914149,0.737,2713.3,2713.2,3.2078]
[1739504914854,1.705,2713.4,2713.1,3.2078]
[1739504915053,0.73711,2712.9,2712.8,3.7891]
[1739504915252,0.73719,2712.6,2712.5,0.00553383]
[1739504915962,0.79490986,2712.6,2712.5,0.00553383]
[1739504916458,1.38760986,2712.6,2712.5,0.00553383]
[1739504916754,0.79490986,2712.6,2712.5,0.00553383]
[1739504916961,1.706,2712.8,2712.5,0.00553383]
[1739504917160,0.72508617,2712.6,2712.5,0.00553383]
[1739504917462,0.73717,2712.7,2712.5,0.00553383]
[1739504917660,1.706,2712.8,2712.5,0.00553383]
[1739504917965,0.73719,2712.6,2712.5,0.00553383]
[1739504919358,0.79490766,2712.6,2712.5,0.00553383]
[1739504920359,0.73719,2712.6,2712.5,0.00553383]
[1739504921263,4.00271013,2712.6,2712.5,0.00553383]
[1739504921465,4.18161013,2712.6,2712.5,0.00403183]
[1739504922664,4.47651013,2712.6,2712.5,0.00403183]
[1739504922860,5.39811013,2712.6,2712.5,0.00403183]
[1739504923263,3.85059,2712.6,2712.5,0.00403183]
[1739504923460,1.45311549,2712.6,2712.5,0.00403183]
[1739504923660,3.1134,2712.6,2712.5,0.00403183]
[1739504924064,3.85059,2712.6,2712.5,0.00403183]
[1739504924663,3.90830785,2712.6,2712.5,0.00403183]
[1739504925858,0.73738,2711.9,2711.8,44.5994]
[1739504926063,0.73738,2711.9,2711.8,44.0078]
[1739504926669,1.03228,2711.9,2711.8,44.0078]
[1739504926858,0.2949,2711.9,2711.8,44.0078]
[1739504927257,0.2949,2711.9,2711.8,3.2078]
[1739504927558,0.2949,2711.9,2711.8,3.94521]
[1739504927757,0.2949,2711.9,2711.8,44.0078]
[1739504928172,0.73743,2711.7,2711.6,0.00553383]
[1739504928560,0.73742,2711.8,2711.6,0.00553383]
[1739504928961,0.2949,2711.9,2711.8,0.73741]
[1739504929167,0.2949,2711.9,2711.8,3.94521]
[1739504929662,0.00553383,2712.1,2711.8,3.7593]
[1739504929960,0.00553383,2712.1,2712.0,0.73735]
[1739504930165,1.48033383,2712.1,2712.0,0.73735]
[1739504930566,1.48033383,2712.1,2712.0,41.53735]
[1739504930760,1.48033383,2712.1,2712.0,40.8]
[1739504930961,1.63823383,2712.1,2712.0,40.8]
[1739504931258,0.16343383,2712.1,2712.0,40.8]
[1739504931762,0.90075383,2712.1,2712.0,40.8]
[1739504932362,0.16343383,2712.1,2712.0,40.8]
[1739504932562,0.16343383,2712.1,2711.8,4.49669]
[1739504932758,0.90077383,2712.1,2711.8,3.7593]
[1739504932963,0.16343383,2712.1,2711.8,3.7593]
[1739504933156,0.73735,2712.0,2711.8,44.5593]
[1739504933359,0.73738,2711.9,2711.8,3.2078]
[1739504933563,0.73737,2712.0,2711.8,3.2078]
[1739504933865,1.88443383,2712.1,2711.8,3.94519]
[1739504934060,0.16343383,2712.1,2711.8,3.2078]
[1739504934559,0.90076383,2712.1,2711.8,3.9452]
[1739504934964,0.16343383,2712.1,2711.8,3.2078]
[1739504935269,0.73737,2712.0,2711.8,3.2078]
[1739504935458,0.16343383,2712.1,2711.8,3.2078]
[1739504935869,0.16343383,2712.1,2711.8,3.94519]
[1739504936072,0.16343383,2712.1,2711.8,3.2078]
[1739504936571,0.73736,2712.0,2711.8,3.2078]
[1739504936764,0.16343383,2712.1,2711.8,3.2078]
[1739504936966,0.16343383,2712.1,2711.8,3.9452]
[1739504937371,0.16343383,2712.1,2711.8,3.2078]
[1739504937566,0.16343383,2712.1,2711.9,0.73736]
[1739504938469,0.16343383,2712.1,2711.8,3.2078]
[1739504938470,0.90078383,2712.1,2711.8,3.2078]
[1739504938773,0.2949,2712.0,2711.8,3.9452]
[1739504938969,1.03227,2712.0,2711.8,3.2078]
[1739504939276,1.65918,2711.9,2711.8,3.2078]
[1739504940470,0.9218,2711.9,2711.6,0.00553383]
[1739504940671,0.73743,2711.7,2711.6,0.00553383]
[1739504941177,0.79516981,2711.7,2711.6,0.00553383]
[1739504941368,0.73743,2711.7,2711.6,0.00553383]
[1739504941777,9.26554034,2711.7,2711.1,40.8]
[1739504942079,1.38862034,2711.6,2711.1,41.53758]
[1739504942279,1.33088,2711.6,2711.1,41.53758]
[1739504942463,2.21261,2711.5,2711.1,41.39]
[1739504942665,0.73754,2711.3,2711.1,0.59]
[1739504942963,1.72,2711.3,2711.1,0.59]
[1739504943167,1.72,2711.3,2711.0,3.2078]
[1739504943168,0.73758,2711.2,2711.0,3.2078]
[1739504943368,1.72,2711.3,2711.0,3.2078]
[1739504943972,0.73759,2711.2,2711.0,3.2078]
[1739504944176,1.72,2711.3,2710.9,0.00553383]
[1739504944379,0.73762,2711.0,2710.9,0.00553383]
[1739504944978,0.73757,2711.2,2710.9,0.00553383]
[1739504945177,1.4751,2711.5,2710.9,0.00553383]
[1739504945367,2.45652,2711.4,2711.0,3.2078]
[1739504946168,1.719,2711.4,2711.0,3.2078]
[1739504946368,1.719,2711.4,2710.9,0.00553383]
[1739504946369,0.05774924,2711.3,2710.9,0.00553383]
[1739504946579,0.73762,2711.0,2710.9,0.00553383]
[1739504947480,3.2078,2711.4,2710.9,0.00553383]
[1739504947675,1.4751,2711.5,2711.4,0.73751]
[1739504947872,1.4751,2711.5,2711.3,3.2078]
[1739504948481,1.4751,2711.5,2711.3,3.94533]
[1739504948681,1.4751,2711.5,2711.4,0.73751]
[1739504948872,1.4751,2711.5,2711.4,1.83071]
[1739504949977,3.2078,2712.4,2711.4,1.83071]
[1739504949978,1.752,2713.9,2711.9,3.2078]
[1739504950186,0.05769011,2713.8,2713.5,3.94472]
[1739504950484,3.2078,2714.2,2713.5,3.94472]
[1739504950682,4.9618,2714.7,2714.0,3.2078]
[1739504950872,0.79432474,2714.6,2714.0,6.83253242]
[1739504951080,0.73675,2714.2,2714.1,0.00553383]
[1739504951272,1.81767852,2714.2,2713.6,3.2078]
[1739504951486,3.80317852,2714.1,2713.6,3.2078]
[1739504951679,0.73685,2713.9,2713.6,3.2078]
[1739504951880,3.7455,2714.1,2713.6,3.2078]
[1739504952085,3.7455,2714.1,2713.1,40.8]
[1739504952086,1.81968622,2714.0,2713.3,3.2078]
[1739504952387,0.05768622,2713.9,2713.4,0.00553383]
[1739504952682,0.7369,2713.7,2713.4,0.00553383]
[1739504953186,3.2078,2713.5,2713.0,3.2078]
[1739504953379,0.737,2713.3,2713.0,3.2078]
[1739504953580,0.7371,2713.0,2712.7,3.2078]
[1739504953880,2.2997,2713.4,2711.4,60.40856081]
[1739504953881,1.762,2712.9,2712.4,3.2078]
[1739504954079,0.73716,2712.7,2712.4,3.2078]
[1739504954483,2.50567383,2712.8,2712.4,3.2078]
[1739504954782,1.76853383,2712.8,2712.4,3.2078]
[1739504954980,0.64971322,2712.7,2712.4,3.2078]
[1739504955174,0.05771538,2712.6,2712.4,3.2078]
[1739504955478,0.592,2712.7,2712.4,3.2078]
[1739504955479,1.765,2712.7,2712.4,3.2078]
[1739504955682,1.765,2712.7,2712.4,3.94504]
[1739504955878,1.765,2712.7,2712.4,3.2078]
[1739504956378,1.765,2712.7,2712.4,3.7961]
[1739504957285,0.00553383,2712.8,2712.4,3.7961]
[1739504957483,0.00553383,2712.8,2712.7,3.2078]
[1739504957882,0.00553383,2712.8,2712.7,3.94496]
[1739504958484,0.00553383,2712.8,2712.7,3.2078]
[1739504959479,0.74266383,2712.8,2712.7,3.2078]
[1739504959987,0.73723,2712.5,2712.4,3.2078]
[1739504960392,0.73724,2712.4,2712.3,0.00553383]
[1739504960585,1.27824,2712.4,2712.3,0.00553383]
[1739504960890,0.541,2712.4,2712.3,0.00553383]
[1739504961089,1.763,2712.4,2712.3,3.21333383]
[1739504961786,3.2376,2712.6,2712.3,3.21333383]
[1739504962485,3.9748,2712.6,2712.3,3.21333383]
[1739504962683,0.73722,2712.5,2712.3,3.21333383]
[1739504962985,1.4746,2712.6,2712.5,0.73722]
[1739504963381,1.764,2713.7,2712.5,47.3668]
[1739504963590,1.82754,2713.9,2713.5,3.94473]
[1739504963793,1.0907,2713.9,2713.5,3.2078]
[1739504963990,0.73692,2713.6,2713.5,3.2078]
[1739504964487,0.00553383,2713.8,2713.2,44.0078]
[1739504964678,0.73697,2713.5,2713.2,44.0078]
[1739504965083,1.769,2713.5,2713.2,44.74482]
[1739504965282,1.769,2713.5,2713.3,0.737]
[1739504965680,1.77553383,2713.8,2713.4,0.73695]
[1739504965886,1.77553383,2713.8,2713.5,3.2078]
[1739504966083,0.00553383,2713.8,2713.5,3.2078]
[1739504966482,0.00553383,2713.8,2713.7,0.73689]
[1739504966688,2.3415,2714.5,2713.5,9.2078]
[1739504966890,2.3415,2714.5,2714.3,3.2078]
[1739504967692,3.07819,2714.5,2714.3,3.2078]
[1739504967890,2.3415,2714.5,2714.3,3.20485426]
[1739504968092,0.0049,2714.5,2714.3,3.20485426]
[1739504968284,1.9861,2714.6,2714.3,9.20485426]
[1739504968483,3.2078,2715.7,2714.8,0.73657]
[1739504968689,1.82865004,2715.6,2714.9,3.2078]
[1739504968888,3.2078,2715.7,2714.9,3.2078]
[1739504968889,0.05765004,2715.5,2715.4,0.73643]
[1739504969090,0.89524522,2716.5,2715.4,11.73262645]
[1739504969091,0.15909522,2716.5,2715.4,11.73262645]
[1739504969402,0.5433,2717.6,2716.3,3.2078]
[1739504969595,1.807,2717.7,2716.9,3.2078]
[1739504969799,0.00399549,2717.2,2716.9,3.2078]
[1739504970098,5.49e-06,2717.2,2716.9,3.2078]
[1739504970287,5.49e-06,2717.2,2717.0,40.8]
[1739504970796,5.49e-06,2717.2,2716.9,3.2078]
[1739504971290,5.49e-06,2717.2,2717.1,0.73597]
[1739504971686,5.49e-06,2717.2,2717.1,10.68159645]
[1739504971885,5.49e-06,2717.2,2717.1,4.68159645]
[1739504972300,3.2078,2719.8,2717.5,3.2078]
[1739504972593,3.2078,2720.5,2719.7,3.2078]
[1739504972793,3.96137499,2721.5,2719.9,3.94562645]
[1739504972794,3.2078,2721.4,2719.9,3.94562645]
[1739504973000,0.01574854,2721.5,2720.4,3.2078]
[1739504973201,3.2078,2720.7,2720.1,3.2078]
[1739504973499,0.179,2720.6,2720.1,3.2078]
[1739504973691,0.179,2720.6,2720.1,3.21332293]
[1739504974899,0.73508,2720.4,2720.1,0.00552293]
[1739504975096,1.908,2720.3,2720.1,3.21332293]
[1739504975292,0.73513,2720.2,2720.1,0.00552293]
[1739504975493,2.64311,2720.3,2720.1,0.00552293]
[1739504975798,0.73513,2720.2,2720.1,2.93e-06]
[1739504976202,6.73513,2720.2,2720.1,2.93e-06]
[1739504976602,6.0,2720.2,2718.5,3.2078]
[1739504976814,1.919,2720.1,2719.5,3.2078]
[1739504977012,3.2078,2720.0,2719.5,3.2078]
[1739504977211,1.919,2719.9,2719.5,3.2078]
[1739504977512,1.919,2719.9,2719.1,3.2078]
[1739504977714,0.73524,2719.8,2719.1,3.2078]
[1739504977915,0.73529,2719.6,2719.2,0.00552293]
[1739504978112,1.916,2719.5,2719.2,0.00552293]
[1739504978614,5.1238,2719.5,2719.2,0.00552293]
[1739504979026,1.914,2719.4,2719.2,0.00552293]
[1739504979205,1.914,2719.4,2718.5,3.2078]
[1739504979516,3.2078,2719.0,2718.2,3.2078]
[1739504979713,1.914,2718.9,2718.5,3.2078]
[1739504980018,0.73532,2719.5,2718.8,3.2078]
[1739504980316,1.913,2719.4,2718.8,3.2078]
[1739504980516,1.913,2719.4,2718.5,3.2078]
[1739504980716,2.64835,2719.4,2718.9,0.00552293]
[1739504981015,1.914,2719.3,2718.9,0.00552293]
[1739504981217,1.914,2719.2,2719.1,3.2078]
[1739504981719,1.29437,2719.7,2719.1,3.2078]
[1739504981915,5.1198,2719.6,2718.9,0.00552293]
[1739504982310,0.73545,2719.0,2718.9,0.00552293]
[1739504982612,1.914,2719.0,2718.9,0.00552293]
[1739504983312,1.915,2719.0,2718.9,0.00552293]
[1739504983911,3.2078,2719.4,2718.9,0.00552293]
[1739504984425,1.912,2719.3,2718.9,0.00552293]
[1739504985116,0.7354,2719.2,2718.9,0.00552293]
[1739504985317,0.5591,2719.7,2718.9,0.00552293]
[1739504985318,2.64343,2719.1,2718.9,0.00552293]
[1739504985518,2.0608,2719.1,2718.9,0.00552293]
[1739504985717,0.73545,2719.0,2718.9,0.00552293]
[1739504986224,2.0608,2719.1,2718.9,0.00552293]
[1739504986523,2.79623,2719.1,2718.9,0.00552293]
[1739504986914,0.73545,2719.0,2718.9,0.00552293]
[1739504987119,2.79623,2719.1,2718.9,0.00552293]
[1739504987320,2.0608,2719.1,2718.9,0.00552293]
[1739504987612,0.73545,2719.0,2718.9,0.00552293]
[1739504987924,1.925,2720.5,2719.7,0.73526]
[1739504988117,1.925,2720.5,2718.9,0.00552293]
[1739504988118,0.73508,2720.4,2719.9,3.2078]
[1739504988317,1.925,2720.5,2720.2,3.2078]
[1739504988510,0.179,2720.6,2720.2,3.94292]
[1739504988711,0.294,2720.4,2720.2,3.2078]
[1739504989126,0.294,2720.4,2720.3,0.7351]
[1739504989318,0.294,2720.4,2720.2,3.2078]
[1739504989520,0.294,2720.4,2720.3,0.7351]
[1739504989715,2.3971,2720.5,2720.3,6.0]
[1739504989919,0.69950545,2720.5,2720.4,0.73507]
[1739504990119,0.18452293,2720.6,2720.3,6.0]
[1739504990418,0.01574854,2721.5,2720.5,3.2078]
[1739504990621,0.73483,2721.3,2721.2,3.2078]
[1739504990827,0.73491,2721.0,2720.9,3.2078]
[1739504991119,2.0097,2721.0,2720.6,3.2078]
[1739504991422,5.95142,2721.0,2720.3,3.2078]
[1739504991620,0.294,2720.9,2720.6,3.2078]
[1739504992220,0.73502,2720.6,2720.5,0.00551268]
[1739504992728,4.6779,2720.8,2719.7,3.2078]
[1739504993022,0.7352,2720.0,2719.7,3.2078]
[1739504993225,1.954,2720.2,2719.7,3.2078]
[1739504993525,5.1618,2720.2,2719.7,3.2078]
[1739504993922,0.73519,2720.0,2719.7,3.21331268]
[1739504994122,5.16727852,2720.2,2719.7,3.21331268]
[1739504994321,0.73524,2719.8,2719.7,0.00551268]
[1739504994725,3.2078,2719.9,2719.1,3.2078]
[1739504994919,3.2078,2719.6,2719.1,3.2078]
[1739504995129,0.73532,2719.6,2719.1,3.2078]
[1739504995324,1.951,2719.8,2719.1,3.2078]
[1739504995929,3.94311,2719.6,2719.2,0.00551268]
[1739504996129,3.2078,2719.9,2719.2,0.00551268]
[1739504996328,0.73526,2719.8,2719.2,0.00551268]
[1739504996529,1.1292,2720.1,2719.4,3.2078]
[1739504996826,1.952,2720.0,2719.7,3.2078]
[1739504997025,1.952,2720.0,2719.3,3.2078]
[1739504997226,0.73526,2719.7,2719.3,3.2078]
[1739504997424,1.95,2719.9,2719.6,3.2078]
[1739504997821,1.951,2719.9,2719.3,3.94317]
[1739504998129,1.951,2719.9,2719.6,3.2078]
[1739504999228,3.2078,2719.8,2719.3,3.2078]
[1739504999427,3.2078,2719.8,2719.2,0.00551268]
[1739504999428,0.73534,2719.5,2719.2,0.00551268]
[1739504999618,1.947,2719.4,2719.2,0.00551268]
[1739505000230,0.73537,2719.3,2719.2,0.00551268]
[1739505000427,1.947,2719.4,2719.2,0.00551268]
[1739505000627,1.4701,2720.8,2719.3,3.2078]
[1739505000835,1.4701,2720.8,2720.1,3.2078]
[1739505001023,1.979,2720.5,2720.1,3.2078]
[1739505001229,3.2078,2720.4,2719.8,44.0078]
[1739505001423,0.73517,2720.1,2719.5,3.2078]
[1739505001627,1.977,2720.0,2719.5,3.2078]
[1739505001928,5.1848,2720.0,2719.2,44.01331268]
[1739505002132,5.1848,2720.0,2719.5,3.2078]
[1739505002832,1.4706,2719.9,2719.5,3.2078]
[1739505003227,0.294,2720.9,2719.8,7.15342645]
[1739505003427,0.294,2720.9,2719.6,1.83824]
[1739505003428,0.294,2720.9,2720.8,3.94277]
[1739505004034,0.5631,2721.8,2720.8,47.95342645]
[1739505004329,0.73475,2721.6,2721.2,2.6346]
[1739505004536,0.16331268,2721.3,2721.2,2.6346]
[1739505005337,0.45721268,2721.3,2721.2,2.6346]
[1739505006529,0.45721268,2721.3,2720.9,3.2078]
[1739505006735,2.46821268,2721.3,2720.8,0.00551268]
[1739505006937,0.73491,2721.0,2720.8,0.00551268]
[1739505007129,2.46821268,2721.3,2720.9,3.2078]
[1739505007629,0.73494,2720.9,2720.8,0.00551268]
[1739505007832,3.2078,2720.9,2720.1,2.90133464]
[1739505008133,2.014,2720.8,2719.8,3.2078]
[1739505008331,0.7351,2720.4,2719.8,3.2078]
[1739505008530,2.7471,2720.4,2719.8,3.2078]
[1739505008729,2.7471,2720.4,2719.6,4.68091645]
[1739505008730,2.012,2720.4,2720.2,3.2078]
[1739505008935,3.765,2721.0,2720.2,3.2078]
[1739505009142,0.557,2721.2,2720.8,3.2078]
[1739505009143,2.01,2720.9,2720.8,3.2078]
[1739505009829,2.01,2720.9,2720.5,3.2078]
[1739505010022,3.2078,2721.1,2720.5,3.2078]
[1739505010228,0.7352,2720.0,2719.8,0.00551268]
[1739505010527,2.015,2720.0,2719.8,0.00551268]
[1739505011330,0.1576,2719.9,2719.8,0.00551268]
[1739505012636,0.1576,2719.9,2719.8,6.74075268]
[1739505012937,0.1576,2719.9,2719.8,6.00551268]
[1739505013133,0.1576,2719.9,2719.8,0.00551268]
[1739505013134,0.89281,2719.9,2719.8,0.00551268]
[1739505015035,0.73534,2719.4,2719.3,3.2078]
[1739505015233,6.1576,2719.9,2719.3,3.2078]
[1739505015234,0.549,2719.8,2719.3,3.2078]
[1739505015436,0.1576,2719.9,2719.7,3.2078]
[1739505015838,0.1576,2719.9,2719.8,0.73524]
[1739505016140,0.1576,2719.9,2719.8,0.55454441]
[1739505016735,0.89281,2719.9,2719.8,0.55454441]
[1739505017426,0.73529,2719.6,2719.5,0.00551268]
[1739505017632,0.1576,2719.9,2719.5,0.00551268]
[1739505017937,0.1576,2719.9,2719.7,3.2078]
[1739505018640,0.89282,2719.9,2719.7,3.2078]
[1739505018840,0.1576,2719.9,2719.7,3.2078]
[1739505019141,0.89281,2719.9,2719.8,40.8]
[1739505019341,0.1576,2719.9,2719.8,40.8]
[1739505020339,0.1576,2719.9,2719.8,41.53524]
[1739505020540,0.1576,2719.9,2719.8,40.8]
[1739505020740,0.1576,2719.9,2719.7,3.2078]
[1739505020941,0.1576,2719.9,2719.5,0.00551268]
[1739505020942,0.73529,2719.6,2719.5,0.00551268]
[1739505021443,2.78729,2719.6,2719.5,0.00551268]
[1739505021637,2.052,2719.6,2719.1,3.2078]
[1739505021842,0.7354,2719.2,2719.1,3.2078]
[1739505022343,0.5446,2719.8,2719.1,3.2078]
[1739505022537,0.5446,2719.8,2719.4,3.2078]
[1739505022735,0.73532,2719.5,2719.4,3.2078]
[1739505022942,0.73535,2719.4,2719.3,0.00551268]
[1739505023640,2.78935,2719.4,2719.3,0.00551268]
[1739505023841,2.054,2719.4,2719.3,0.00551268]
[1739505024042,0.5446,2719.8,2719.3,0.00551268]
[1739505024345,2.5966,2719.8,2719.4,3.2078]
[1739505024847,3.33184,2719.8,2719.4,3.2078]
[1739505025143,0.5446,2719.8,2719.4,3.2078]
[1739505026446,0.5446,2719.8,2719.3,0.00551268]
[1739505026447,0.73533,2719.5,2719.3,0.00551268]
[1739505026943,0.5446,2719.8,2719.4,3.2078]
[1739505027640,0.5446,2719.8,2719.7,3.2078]
[1739505027846,1.27984,2719.8,2719.7,3.2078]
[1739505028049,0.73529,2719.6,2719.5,3.2078]
[1739505028347,0.73535,2719.4,2719.3,0.00551268]
[1739505029345,0.73545,2719.1,2718.9,3.2078]
[1739505029643,2.045,2719.5,2718.9,3.2078]
[1739505029843,2.045,2719.5,2718.8,40.82545]
[1739505029844,2.045,2719.5,2719.3,3.2078]
[1739505030346,0.73537,2719.4,2719.0,3.2078]
[1739505030544,2.045,2719.5,2719.1,0.00551268]
[1739505030740,0.73536,2719.4,2719.1,0.00551268]
[1739505031046,2.045,2719.5,2719.1,0.00551268]
[1739505031544,0.1574,2719.4,2719.3,3.2078]
[1739505032744,0.89275,2719.4,2719.3,3.2078]
[1739505032957,0.1574,2719.4,2719.3,3.2078]
[1739505033150,0.89275,2719.4,2719.3,3.2078]
[1739505033349,0.1574,2719.4,2719.3,3.2078]
[1739505033651,0.89275,2719.4,2719.3,3.2078]
[1739505034052,0.7354,2719.2,2719.1,0.00551268]
[1739505034255,0.1574,2719.4,2719.1,0.00551268]
[1739505034549,0.1574,2719.4,2719.3,3.94317]
[1739505035646,0.1574,2719.4,2719.3,9.94317]
[1739505035848,0.2941,2719.6,2719.3,9.2078]
[1739505036044,0.2941,2719.6,2719.5,0.73532]
[1739505037144,0.2941,2719.6,2719.3,3.2078]
[1739505037339,0.2941,2719.6,2719.5,0.73532]
[1739505038941,0.2941,2719.6,2719.5,4.68094645]